[Event "22nd OIBM 2018"]
[Site "Gmund am Tegernsee"]
[Date "2018.11.02"]
[Round "7"]
[White "Maier, Alexander"]
[Black "Billio, Atto"]
[Result "1-0"]
[ECO "B21"]
[WhiteElo "2275"]
[BlackElo "2074"]
[Annotator "NA"]
[PlyCount "101"]
[EventDate "2018.10.27"]
[EventType "swiss"]
[EventCountry "GER"]
[SourceTitle "playchess.com"]
[Source "ChessBase"]
[SourceQuality "1"]
[TimeControl "40/5400+30:1800+30"]

1. e4 c5 2. d4 cxd4 3. c3 Nf6 4. e5 Nd5 5. Nf3 e6 6. cxd4 {[%emt 0:00:20]} d6 {[%emt 0:16:37]} 7. a3 {[%emt 0:01:44]} dxe5 {[%emt 0:05:50] B22: Sicilian: 2 c3} (7... Be7 8. Bd3 O-O 9. O-O b6 10. Qc2 g6 11. Bh6 Re8 12. Nbd2 Ba6 13. Bxa6 Nxa6 14. Ne4 dxe5 15. Nxe5 Rc8 {1-0 (51) Wang,H (2709)-Harikrishna,P (2744) Huaian 2017}) 8. dxe5 {[%emt 0:00:26]} b6 {[%emt 0:03:22]} 9. Bd3 {[%emt 0:12:16]} Nd7 {[%emt 0:01:45]} 10. Qa4 $146 {[%emt 0:15:25]} ({Predecessor:} 10. O-O Be7 11. Re1 Bb7 12. Nd4 O-O 13. Qg4 Kh8 14. Nxe6 fxe6 15. Qh5 {0-1 (38) Jedrocha,K (1668)-Wozniak,M (1982) Szczyrk 2013}) 10... Bb7 {[%emt 0:02:37]} 11. O-O {[%emt 0:01:38]} Qc7 {[%emt 0:00:57]} 12. Re1 {[%emt 0:05:46]} a6 {[%emt 0:09:14]} 13. Bg5 {[%emt 0:10:15]} h6 {[%emt 0:10:58]} 14. Bh4 {[%emt 0:09:18]} b5 {[%emt 0:05:50]} 15. Qg4 {[%emt 0:00:36]} g5 {[%emt 0:04:44]} 16. Bg3 {[%emt 0:02:33]} Nc5 {[%emt 0:15:19]} 17. Bc2 {[%emt 0:01:19]} Rc8 {[%emt 0:02:54]} 18. Nbd2 {[%emt 0:01:31]} Be7 {[%emt 0:00:39]} 19. Qh5 {[%emt 0:03:21]} Na4 {[%emt 0:01:03]} 20. Nd4 {[%emt 0:02:31]} Qd7 {[%emt 0:01:14]} 21. Bxa4 {[%emt 0:08:28]} bxa4 {[%emt 0:00:04]} 22. N2f3 {[%emt 0:01:58]} Kf8 {[%emt 0:02:46]} 23. Rad1 {[%emt 0:00:29]} Rc4 {[%emt 0:01:03]} 24. Nf5 {[%emt 0:03:02]} g4 {[%emt 0:09:48]} 25. Nxh6 {[%emt 0:04:46]} Bb4 {[%emt 0:02:11]} 26. axb4 {[%emt 0:03:47]} gxf3 {[%emt 0:00:05]} 27. Bh4 {[%emt 0:01:03]} fxg2 28. Bf6 {[%emt 0:02:49]} Rh7 {[%emt 0:02:18]} 29. Qg5 {[%emt 0:00:54]} Nxf6 {[%emt 0:00:58]} 30. Rxd7 {[%emt 0:01:14]} Nxd7 {[%emt 0:00:02]} 31. Qg8+ {[%emt 0:00:13]} Ke7 {[%emt 0:00:06]} 32. Qxh7 {[%emt 0:00:06]} Nxe5 {[%emt 0:00:07]} 33. Ng8+ {[%emt 0:05:13]} Ke8 {[%emt 0:01:02]} 34. Qh8 {[%emt 0:01:45]} Nf3+ {[%emt 0:00:22]} 35. Kxg2 {[%emt 0:00:03]} Nxe1+ 36. Kg3 {[%emt 0:00:07]} Rxb4 {[%emt 0:01:05]} 37. Nf6+ {[%emt 0:00:48]} Ke7 {[%emt 0:00:04]} 38. Ng8+ {[%emt 0:00:03]} Kd7 {[%emt 0:00:12]} 39. f3 {[%emt 0:00:59]} Nxf3 {[%emt 0:01:07]} 40. Qf6 {[%emt 0:00:46]} Rb3 {[%emt 0:00:26]} 41. Qxf7+ {[%emt 0:30:31]} Kd6 {[%emt 0:30:08]} 42. Qe7+ {[%emt 0:00:34]} Ke5 {[%emt 0:00:38]} 43. Qc7+ {[%emt 0:00:00]} Kd4 {[%emt 0:00:00]} 44. Qd7+ {[%emt 0:00:00]} Ke5 {[%emt 0:00:00]} ({Black should play} 44... Kc5 45. Qxa4 Nd2+ 46. Kf2 Ne4+ 47. Kg1 Rxb2 48. Qa3+ Rb4) 45. Qxa4 {[%emt 0:00:00]} Nd4+ {[%emt 0:00:00] [#]} 46. Kg4 $1 {[%emt 0:00:00]} Rxb2 47. Qa5+ {[%emt 0:00:00]} Rb5 {[%emt 0:00:00]} 48. Qc7+ {[%emt 0:00:00]} Ke4 {[%emt 0:00:00]} 49. Qc3 {[%emt 0:00:00]} Rb3 $2 {[%emt 0:00:00]} (49... Ke5 $16 50. h4 Bf3+ 51. Kg5 Rb7) 50. Nf6+ {[%emt 0:00:00]} Ke5 $18 {[%emt 0:00:00]} 51. Nd7+ {[%emt 0:00:00]} 1-0

[Event "22nd OIBM 2018"]
[Site "Gmund am Tegernsee"]
[Date "2018.11.02"]
[Round "7"]
[White "Lipok, Christoph"]
[Black "Braun, Michael"]
[Result "0-1"]
[ECO "D30"]
[WhiteElo "2271"]
[BlackElo "2365"]
[Annotator "ChessBase"]
[PlyCount "177"]
[EventDate "2018.10.27"]
[EventType "swiss"]
[EventCountry "GER"]
[SourceTitle "playchess.com"]
[Source "ChessBase"]
[SourceQuality "1"]
[TimeControl "40/5400+30:1800+30"]

1. d4 {[%emt 0:00:00]} d5 {[%emt 0:00:00]} 2. c4 {[%emt 0:00:00]} e6 {[%emt 0:00:00]} 3. Nf3 {[%emt 0:00:00]} c6 {[%emt 0:00:08]} 4. e3 {[%emt 0:00:47]} Bd6 {[%emt 0:00:20]} 5. b3 {[%emt 0:00:20]} f5 {[%emt 0:00:28]} 6. Bd3 {[%emt 0:00:13]} Nf6 {[%emt 0:00:14]} 7. O-O {[%emt 0:00:08]} Qe7 {[%emt 0:00:13]} 8. Bb2 {[%emt 0:00:54]} b6 {[%emt 0:00:29]} 9. Ne5 {[%emt 0:01:26]} O-O {[%emt 0:01:09]} 10. Nc3 {[%emt 0:03:21]} Ne4 {[%emt 0:02:39]} 11. Ne2 {[%emt 0:03:33]} Bb7 {[%emt 0:00:40]} 12. f3 {[%emt 0:01:15]} Nf6 {[%emt 0:00:09]} 13. Nc3 {[%emt 0:16:44]} Nbd7 {[%emt 0:01:55]} 14. cxd5 {[%emt 0:01:54]} Nxd5 {[%emt 0:01:18]} 15. Nxd7 {[%emt 0:07:24]} Qxd7 {[%emt 0:01:34]} 16. Qe2 {[%emt 0:00:37]} Nb4 {[%emt 0:03:21]} 17. Bc4 {[%emt 0:02:52]} b5 {[%emt 0:00:27]} 18. a3 {[%emt 0:02:48]} bxc4 {[%emt 0:01:13]} 19. axb4 {[%emt 0:00:08]} cxb3 {[%emt 0:00:42]} 20. Qc4 {[%emt 0:00:58]} Rfb8 {[%emt 0:01:47]} 21. Na4 {[%emt 0:03:16]} Qe7 {[%emt 0:03:57]} 22. Nc5 {[%emt 0:00:57]} Bc8 {[%emt 0:00:54]} 23. Ra3 {[%emt 0:06:53]} a5 {[%emt 0:06:33]} 24. Rxa5 {[%emt 0:05:44]} Rxa5 {[%emt 0:00:51]} 25. bxa5 {[%emt 0:00:04]} Bxc5 {[%emt 0:03:05]} 26. dxc5 {[%emt 0:01:13]} Rb5 {[%emt 0:00:01]} 27. Rd1 {[%emt 0:05:32]} Rxa5 {[%emt 0:09:50]} 28. Rd6 {[%emt 0:03:50]} Bd7 {[%emt 0:04:50]} 29. Qb4 {[%emt 0:07:15]} Rb5 {[%emt 0:00:55]} 30. Qd4 {[%emt 0:05:08]} Rb7 {[%emt 0:00:40]} 31. Qa4 {[%emt 0:01:09]} Be8 {[%emt 0:02:20]} 32. e4 {[%emt 0:04:17]} fxe4 {[%emt 0:01:20]} 33. Qxe4 {[%emt 0:00:22]} Bd7 {[%emt 0:02:36]} 34. f4 {[%emt 0:03:24]} Qf7 {[%emt 0:00:32]} 35. Rd3 {[%emt 0:04:18]} Qf5 {[%emt 0:02:02]} 36. Qd4 {[%emt 0:02:06]} Qf6 {[%emt 0:02:53]} 37. Qf2 {[%emt 0:02:20]} Qf5 {[%emt 0:00:35]} 38. Qd4 {[%emt 0:00:17]} Qf6 {[%emt 0:00:07]} 39. Qf2 {[%emt 0:03:10]} Qf5 {[%emt 0:00:36]} 40. Qe3 {[%emt 0:02:25]} Be8 {[%emt 0:04:23]} 41. h3 {[%emt 0:03:51]} h5 {[%emt 0:05:42]} 42. Kh2 {[%emt 0:01:33]} Rb4 {[%emt 0:07:31]} 43. Rd8 {[%emt 0:06:07]} Kf7 {[%emt 0:01:17]} 44. Rd4 {[%emt 0:03:01]} Rxd4 {[%emt 0:01:12]} 45. Qxd4 {[%emt 0:00:07]} Qf6 {[%emt 0:00:35]} 46. Qf2 {[%emt 0:00:08]} Qf5 {[%emt 0:00:14]} 47. Qg3 {[%emt 0:00:17]} Qg6 {[%emt 0:02:09]} 48. Qxb3 {[%emt 0:00:39]} h4 {[%emt 0:01:16]} 49. Be5 {[%emt 0:02:21]} Kg8 {[%emt 0:01:24]} 50. Bd4 {[%emt 0:01:56]} Qe4 {[%emt 0:05:38]} 51. Qe3 {[%emt 0:04:14]} Qxe3 {[%emt 0:05:35]} 52. Bxe3 {[%emt 0:00:01]} Bg6 {[%emt 0:00:10]} 53. Bf2 {[%emt 0:00:07]} Bd3 {[%emt 0:00:59]} 54. Bxh4 {[%emt 0:00:12]} g6 {[%emt 0:00:43]} 55. Bf6 {[%emt 0:00:20]} Bc2 {[%emt 0:01:08]} 56. Kg3 {[%emt 0:01:08]} Be4 {[%emt 0:00:12]} 57. Kf2 {[%emt 0:00:23]} Bd5 {[%emt 0:00:29]} 58. Be5 {[%emt 0:01:28]} Be4 {[%emt 0:00:10]} 59. g3 {[%emt 0:02:38]} Kf7 {[%emt 0:00:17]} 60. Bc7 {[%emt 0:00:22]} Bd5 {[%emt 0:00:09]} 61. Ke3 {[%emt 0:00:29]} Bg2 {[%emt 0:00:15]} 62. h4 Kf6 {[%emt 0:01:49]} 63. g4 {[%emt 0:00:32]} Bf1 {[%emt 0:00:42]} 64. Bd8+ {[%emt 0:00:06]} Kf7 {[%emt 0:00:08]} 65. Ke4 {[%emt 0:02:21]} Be2 {[%emt 0:00:24]} 66. g5 {[%emt 0:02:04]} Bg4 {[%emt 0:01:04]} 67. Bf6 {[%emt 0:00:11]} Bd1 {[%emt 0:00:13]} 68. Ke5 {[%emt 0:02:19]} Be2 {[%emt 0:00:21]} 69. Kd6 {[%emt 0:00:06]} Bf3 {[%emt 0:00:07]} 70. Be5 {[%emt 0:00:02]} Bd5 {[%emt 0:00:31]} 71. Kd7 {[%emt 0:00:06]} Bf3 {[%emt 0:00:53]} 72. Ba1 {[%emt 0:00:36]} Bg2 {[%emt 0:00:08]} 73. Kd6 {[%emt 0:00:54]} Bf3 {[%emt 0:00:15]} 74. Bc3 {[%emt 0:00:01]} Bg2 {[%emt 0:00:10]} 75. Bd4 {[%emt 0:00:08]} Bf3 76. Ke5 Bg4 {[%emt 0:00:38]} 77. Ke4 {[%emt 0:02:18]} Bd1 {[%emt 0:00:24]} 78. Ke5 {[%emt 0:00:45]} Bg4 {[%emt 0:00:11]} 79. Bc3 {[%emt 0:00:09]} Be2 {[%emt 0:00:15]} 80. Kd6 {[%emt 0:03:27]} Bf3 {[%emt 0:00:09]} 81. Ke5 {[%emt 0:00:44]} Be2 {[%emt 0:00:29]} 82. Kd6 {[%emt 0:00:22]} Bf3 {[%emt 0:00:54]} 83. Be1 {[%emt 0:00:13]} Bg2 {[%emt 0:00:13]} 84. Ke5 {[%emt 0:01:45]} Bf3 {[%emt 0:00:10]} 85. Bg3 {[%emt 0:00:27]} Be2 {[%emt 0:00:14]} 86. Kd6 {[%emt 0:00:28]} Bf3 {[%emt 0:00:06]} 87. Ke5 {[%emt 0:00:02]} Be2 {[%emt 0:00:07]} 88. Kd6 {[%emt 0:00:02]} Bf3 {[%emt 0:00:17]} 89. Ke5 {[%emt 0:00:15]} 0-1

[Event "22nd OIBM 2018"]
[Site "Gmund am Tegernsee"]
[Date "2018.11.02"]
[Round "7"]
[White "Heimrath, Reiner"]
[Black "Schmidt, Gerhard, Dr."]
[Result "1-0"]
[ECO "B23"]
[WhiteElo "2262"]
[BlackElo "2068"]
[Annotator "NA"]
[PlyCount "78"]
[EventDate "2018.10.27"]
[EventType "swiss"]
[EventCountry "GER"]
[SourceTitle "playchess.com"]
[Source "ChessBase"]
[SourceQuality "1"]
[TimeControl "40/5400+30:1800+30"]

1. e4 {[%emt 0:00:00]} c5 {[%emt 0:00:00]} 2. Nc3 {[%emt 0:00:00]} d6 {[%emt 0:00:00]} 3. d3 {[%emt 0:00:03]} Nc6 {[%emt 0:00:27] B23: Closed Sicilian: Lines without g3} 4. Be3 {[%emt 0:00:12]} (4. g3 g6 5. Be3 Bg7 6. Qd2 e5 7. Bg2 Nge7 8. h4 h5 9. f4 Nd4 10. Nd1 d5 11. c3 Ne6 12. Nf3 d4 13. Bg1 Nc6 14. c4 f6 15. Nf2 Bh6 16. Nh3 {½-½ (57) Granda Zuniga,J (2667)-Wojtaszek,R (2734) Baku 2015}) 4... Nf6 {[%emt 0:00:53]} 5. h3 {[%emt 0:00:10]} e5 {[%emt 0:00:50]} 6. f4 {[%emt 0:00:12]} Be7 7. g4 $146 {[%emt 0:00:54]} ({Predecessor:} 7. Nf3 Nd4 8. fxe5 Nxf3+ 9. Qxf3 dxe5 10. O-O-O Be6 11. g4 {½-½ (29) Quaschner,T (1893)-Petzold,V (2016) Mittelfranken 2008}) 7... exf4 {[%emt 0:05:56]} 8. Bxf4 {[%emt 0:00:14]} h6 9. Qd2 {[%emt 0:02:15]} Be6 {[%emt 0:06:11]} 10. Bg2 {[%emt 0:00:58]} Nd4 {[%emt 0:08:20]} 11. Nge2 {[%emt 0:11:40]} Nxe2 {[%emt 0:17:25]} 12. Nxe2 Nd7 13. Bg3 {[%emt 0:17:09]} Bg5 {[%emt 0:06:22]} 14. Nf4 Bh4 {[%emt 0:02:31]} 15. Qf2 {[%emt 0:07:08]} Bxg3 {[%emt 0:03:28]} 16. Qxg3 {[%emt 0:00:02]} Qb6 {[%emt 0:01:35]} 17. O-O {[%emt 0:00:07]} O-O-O {[%emt 0:03:22]} 18. c3 {[%emt 0:06:31]} g5 {[%emt 0:03:08]} 19. Nd5 {[%emt 0:14:26]} Bxd5 {[%emt 0:03:22]} 20. exd5 {[%emt 0:00:02]} Ne5 {[%emt 0:02:06]} 21. Rad1 {[%emt 0:07:47]} c4+ {[%emt 0:04:13]} 22. d4 {[%emt 0:00:30]} Nd3 {[%emt 0:00:17]} 23. Rxf7 {[%emt 0:16:35]} Qxb2 {[%emt 0:20:07]} 24. Bf1 {[%emt 0:00:12]} Rhf8 {[%emt 0:03:32]} 25. Rf5 {[%emt 0:06:40]} Rxf5 {[%emt 0:00:50]} 26. gxf5 {[%emt 0:00:02]} Qxc3 {[%emt 0:02:33]} 27. Qe3 {[%emt 0:02:56]} Qc2 {[%emt 0:02:12]} 28. Rd2 {[%emt 0:00:07]} Qb1 {[%emt 0:00:30]} 29. f6 {[%emt 0:00:32]} Nf4 {[%emt 0:02:11]} 30. Rf2 {[%emt 0:01:23]} Qg6 {[%emt 0:01:33]} 31. Qe7 {[%emt 0:00:45]} Rd7 {[%emt 0:00:13]} 32. Qf8+ {[%emt 0:00:57]} Kc7 {[%emt 0:00:26]} 33. Rb2 {[%emt 0:01:43]} Rd8 {[%emt 0:02:15]} 34. Qe7+ {[%emt 0:00:49]} Rd7 {[%emt 0:00:03]} 35. Rxb7+ {[%emt 0:00:11]} Kxb7 {[%emt 0:00:06]} 36. Qxd7+ {[%emt 0:00:08]} Kb8 {[%emt 0:00:18]} 37. Qe8+ {[%emt 0:03:06] Qxf6 [%clk 0:03:47] Qc6 [%clk 0:01:17]} Kc7 {[%emt 0:00:21]} 38. Qa8 {[%emt 0:01:21] Kd8 [%clk 0:03:29] Qxa7 [%clk 0:15:03]} Kd7 $2 {[%emt 0:00:00]} (38... Qxf6 $11 39. Qxa7+ Kd8) 39. Qb8 $11 {[%emt 0:00:00] Kc7 [%clk 0:34:35]} (39. Qxa7+ {mates} Kd8 40. Qe7+ Kc8 41. f7 Qxf7 42. Qxf7 Nd3 43. Qe8+ Kc7 44. Qc6+ Kd8 45. Qxd6+ Ke8 46. Qc7) 39... Qe8 $2 {[%emt 0:00:00] Qxd4+ [%clk 0:34:43]} (39... Qxf6 $11 40. Qxa7+ Ke8 41. Qa4+ Kf7 42. Qxc4 Qe7) 1-0

[Event "22nd OIBM 2018"]
[Site "Gmund am Tegernsee"]
[Date "2018.11.02"]
[Round "7"]
[White "Heimrath, Reiner"]
[Black "Schmidt, Gerhard"]
[Result "1-0"]
[ECO "B23"]
[WhiteElo "2262"]
[BlackElo "2068"]
[Annotator "ChessBase"]
[PlyCount "78"]
[EventDate "2018.10.27"]
[EventType "swiss"]
[EventCountry "GER"]
[SourceTitle "playchess.com"]
[Source "ChessBase"]
[SourceQuality "1"]
[TimeControl "40/5400+30:1800+30"]

1. e4 {[%emt 0:00:00]} c5 {[%emt 0:00:00]} 2. Nc3 {[%emt 0:00:00]} d6 {[%emt 0:00:00]} 3. d3 {[%emt 0:00:03]} Nc6 {[%emt 0:00:27]} 4. Be3 {[%emt 0:00:12]} Nf6 {[%emt 0:00:53]} 5. h3 {[%emt 0:00:10]} e5 {[%emt 0:00:50]} 6. f4 {[%emt 0:00:12]} Be7 7. g4 {[%emt 0:00:54]} exf4 {[%emt 0:05:56]} 8. Bxf4 {[%emt 0:00:14]} h6 9. Qd2 {[%emt 0:02:15]} Be6 {[%emt 0:06:11]} 10. Bg2 {[%emt 0:00:58]} Nd4 {[%emt 0:08:20]} 11. Nge2 {[%emt 0:11:40]} Nxe2 {[%emt 0:17:25]} 12. Nxe2 Nd7 13. Bg3 {[%emt 0:17:09]} Bg5 {[%emt 0:06:22]} 14. Nf4 Bh4 {[%emt 0:02:31]} 15. Qf2 {[%emt 0:07:08]} Bxg3 {[%emt 0:03:28]} 16. Qxg3 {[%emt 0:00:02]} Qb6 {[%emt 0:01:35]} 17. O-O {[%emt 0:00:07]} O-O-O {[%emt 0:03:22]} 18. c3 {[%emt 0:06:31]} g5 19. Nd5 {[%emt 0:14:26]} Bxd5 {[%emt 0:03:22]} 20. exd5 {[%emt 0:00:02]} Ne5 {[%emt 0:02:06]} 21. Rad1 {[%emt 0:07:47]} c4+ {[%emt 0:04:13]} 22. d4 {[%emt 0:00:30]} Nd3 {[%emt 0:00:17]} 23. Rxf7 {[%emt 0:16:35]} Qxb2 {[%emt 0:20:07]} 24. Bf1 {[%emt 0:00:12]} Rhf8 {[%emt 0:03:32]} 25. Rf5 {[%emt 0:06:40]} Rxf5 {[%emt 0:00:50]} 26. gxf5 {[%emt 0:00:02]} Qxc3 {[%emt 0:02:33]} 27. Qe3 {[%emt 0:02:56]} Qc2 {[%emt 0:02:12]} 28. Rd2 {[%emt 0:00:07]} Qb1 {[%emt 0:00:30]} 29. f6 {[%emt 0:00:32]} Nf4 {[%emt 0:02:11]} 30. Rf2 {[%emt 0:01:23]} Qg6 {[%emt 0:01:33]} 31. Qe7 {[%emt 0:00:45]} Rd7 {[%emt 0:00:13]} 32. Qf8+ {[%emt 0:00:57]} Kc7 {[%emt 0:00:26]} 33. Rb2 {[%emt 0:01:43]} Rd8 {[%emt 0:02:15]} 34. Qe7+ {[%emt 0:00:49]} Rd7 {[%emt 0:00:03]} 35. Rxb7+ {[%emt 0:00:11]} Kxb7 {[%emt 0:00:06]} 36. Qxd7+ {[%emt 0:00:08]} Kb8 {[%emt 0:00:18]} 37. Qe8+ {[%emt 0:03:06] Qxf6 [%clk 0:03:47] Qc6 [%clk 0:01:17]} Kc7 {[%emt 0:00:21]} 38. Qa8 {[%emt 0:01:21] Kd8 [%clk 0:03:29] Qxa7 [%clk 0:15:03]} Kd7 {[%emt 0:00:00]} 39. Qb8 {[%emt 0:00:00] Kc7 [%clk 0:34:35]} Qe8 {[%emt 0:00:00] Qxd4+ [%clk 0:34:43]} 1-0

[Event "22nd OIBM 2018"]
[Site "Gmund am Tegernsee"]
[Date "2018.11.02"]
[Round "7"]
[White "Wessendorf, Thomas, Dr."]
[Black "Schoetzig, Detlef"]
[Result "1/2-1/2"]
[ECO "B01"]
[WhiteElo "2235"]
[BlackElo "2102"]
[Annotator "NA"]
[PlyCount "100"]
[EventDate "2018.10.27"]
[EventType "swiss"]
[EventCountry "GER"]
[SourceTitle "playchess.com"]
[Source "ChessBase"]
[SourceQuality "1"]
[TimeControl "40/5400+30:1800+30"]

1. e4 {[%emt 0:00:00]} d5 {[%emt 0:00:00]} 2. exd5 {[%emt 0:00:00]} Nf6 {[%emt 0:00:00]} 3. d4 {[%emt 0:00:26]} Nxd5 {[%emt 0:00:13]} 4. Nf3 {[%emt 0:00:38]} Bg4 {[%emt 0:00:31]} 5. c4 {[%emt 0:01:51]} Nb6 {[%emt 0:00:17]} 6. c5 {[%emt 0:01:05]} N6d7 {[%emt 0:01:47]} 7. Bc4 {[%emt 0:02:16]} e6 {[%emt 0:00:48]} 8. h3 {[%emt 0:01:56]} Bxf3 {[%emt 0:00:12]} 9. Qxf3 {[%emt 0:00:13]} Nc6 {[%emt 0:00:07] B01: Scandinavian Defence} 10. Be3 {[%emt 0:03:13]} Qf6 {[%emt 0:00:52]} 11. Nc3 {[%emt 0:11:43]} Qxf3 {[%emt 0:02:15]} 12. gxf3 {[%emt 0:00:14]} O-O-O {[%emt 0:05:31]} 13. O-O-O {[%emt 0:07:15]} Nf6 $146 {[%emt 0:03:14]} ({Predecessor:} 13... Be7 14. a3 e5 15. d5 Nd4 16. b4 Nxf3 17. Nb5 {½-½ (27) Tischbierek,R (2475)-Grottke,H (2265) Zittau 1989}) 14. a3 {[%emt 0:11:00]} Ne7 {[%emt 0:10:21]} 15. Ne4 {[%emt 0:16:50]} Nf5 {[%emt 0:05:20]} 16. Ng5 {[%emt 0:01:58]} Rg8 {[%emt 0:09:50]} 17. Nxf7 {[%emt 0:03:18]} Re8 {[%emt 0:01:57]} 18. Ng5 {[%emt 0:03:47]} Nxe3 {[%emt 0:00:15]} 19. fxe3 {[%emt 0:00:18]} Kd7 {[%emt 0:00:03]} 20. e4 {[%emt 0:05:18]} c6 {[%emt 0:02:57]} 21. Rhg1 {[%emt 0:00:41]} g6 {[%emt 0:02:01]} 22. e5 {[%emt 0:08:09]} Nd5 {[%emt 0:00:05]} 23. Bxd5 {[%emt 0:00:44]} cxd5 {[%emt 0:00:16]} 24. Nxh7 {[%emt 0:00:43]} Be7 {[%emt 0:00:05]} 25. f4 {[%emt 0:03:42]} Rh8 {[%emt 0:00:46]} 26. Nf6+ {[%emt 0:04:15]} Bxf6 {[%emt 0:00:02]} 27. exf6 {[%emt 0:00:02]} Rh6 {[%emt 0:01:30]} 28. Rg4 {[%emt 0:01:26]} Rf8 {[%emt 0:00:04]} 29. Rdg1 {[%emt 0:01:52]} Rxf6 {[%emt 0:00:02]} 30. R1g3 {[%emt 0:01:06]} Rf5 {[%emt 0:05:53]} 31. h4 {[%emt 0:02:41]} Rfh5 {[%emt 0:07:30]} 32. Rxg6 {[%emt 0:03:06]} Rxg6 {[%emt 0:07:27]} 33. Rxg6 {[%emt 0:00:02]} Rxh4 {[%emt 0:00:11]} 34. Rg7+ {[%emt 0:00:17]} Kc6 {[%emt 0:01:10]} 35. Rf7 {[%emt 0:00:25]} a5 {[%emt 0:03:53]} 36. Kc2 {[%emt 0:01:37]} b6 {[%emt 0:01:26]} 37. cxb6 {[%emt 0:01:04]} Kxb6 {[%emt 0:00:05]} 38. Rf6 {[%emt 0:00:28]} Kb5 {[%emt 0:00:37]} 39. b3 {[%emt 0:02:48]} a4 {[%emt 0:04:16]} 40. bxa4+ {[%emt 0:00:37]} Kxa4 {[%emt 0:00:05]} 41. Kd2 {[%emt 0:08:31]} Kxa3 {[%emt 0:00:52]} 42. Rxe6 {[%emt 0:04:12]} Rxf4 {[%emt 0:02:22]} 43. Ke3 {[%emt 0:00:56]} Rh4 {[%emt 0:01:28]} 44. Rc6 {[%emt 0:03:35]} Re4+ {[%emt 0:06:21]} 45. Kd3 {[%emt 0:00:08]} Rh4 {[%emt 0:00:01]} 46. Rc5 {[%emt 0:00:41]} Rh3+ {[%emt 0:00:34]} 47. Ke2 {[%emt 0:01:00]} Kb4 {[%emt 0:00:04]} 48. Rxd5 $11 {[%emt 0:00:45]} Kc4 {[%emt 0:00:02]} 49. Rd8 {[%emt 0:01:02]} Ra3 {[%emt 0:00:35]} 50. d5 {[%emt 0:02:18]} Kc5 {[%emt 0:00:23]} 1/2-1/2

[Event "22nd OIBM 2018"]
[Site "Gmund am Tegernsee"]
[Date "2018.11.02"]
[Round "7"]
[White "Hinrichs, Lars"]
[Black "Hanisch, Sebastian"]
[Result "0-1"]
[ECO "C00"]
[WhiteElo "2233"]
[BlackElo "2093"]
[Annotator "NA"]
[PlyCount "64"]
[EventDate "2018.10.27"]
[EventType "swiss"]
[EventCountry "GER"]
[SourceTitle "playchess.com"]
[Source "ChessBase"]
[SourceQuality "1"]
[TimeControl "40/5400+30:1800+30"]

1. e4 {[%emt 0:00:00]} e6 {[%emt 0:00:00]} 2. d4 {[%emt 0:00:00]} d5 {[%emt 0:00:00]} 3. Bd3 {[%emt 0:00:00]} dxe4 {[%emt 0:02:56]} 4. Bxe4 {[%emt 0:00:02]} Nf6 {[%emt 0:00:14]} 5. Bf3 {[%emt 0:00:05]} c5 {[%emt 0:01:58]} 6. Ne2 {[%emt 0:00:18]} Nc6 {[%emt 0:03:35]} 7. Be3 {[%emt 0:00:15]} cxd4 {[%emt 0:04:56]} 8. Nxd4 {[%emt 0:00:07]} Bd7 {[%emt 0:00:18]} 9. O-O {[%emt 0:07:40]} Be7 {[%emt 0:12:22]} 10. c4 {[%emt 0:11:40]} a6 $14 {[%emt 0:02:10]} 11. Nxc6 {[%emt 0:04:01]} Bxc6 {[%emt 0:00:20]} 12. Bxc6+ {[%emt 0:00:12]} bxc6 {[%emt 0:00:07]} 13. Qf3 {[%emt 0:00:06]} Qc7 {[%emt 0:05:38]} 14. Nc3 {[%emt 0:00:15]} O-O {[%emt 0:00:30]} 15. Na4 {[%emt 0:05:42]} Nd7 {[%emt 0:08:49]} 16. b3 {[%emt 0:05:38]} f5 {[%emt 0:07:59]} 17. Rad1 {[%emt 0:03:53]} Rae8 {[%emt 0:04:00]} 18. Rfe1 {[%emt 0:11:16]} e5 {[%emt 0:02:55]} 19. Qh3 {[%emt 0:05:05]} Bb4 {[%emt 0:02:30]} 20. Bd2 {[%emt 0:01:02]} Bxd2 {[%emt 0:07:01]} 21. Rxd2 {[%emt 0:00:05]} e4 {[%emt 0:00:18]} 22. Red1 {[%emt 0:07:59]} Ne5 {[%emt 0:01:04]} 23. Nc5 {[%emt 0:01:27]} Rf7 {[%emt 0:05:11]} 24. Qc3 {[%emt 0:00:52]} Ng4 {[%emt 0:05:02]} 25. Rd6 {[%emt 0:10:11]} f4 {[%emt 0:18:09]} 26. Ne6 {[%emt 0:12:08]} Qe7 {[%emt 0:01:16]} 27. Qd4 {[%emt 0:08:20]} Qh4 {[%emt 0:01:37]} 28. Rd8 {[%emt 0:03:15]} Qxh2+ {[%emt 0:01:43]} 29. Kf1 {[%emt 0:00:01]} Ne3+ {[%emt 0:00:57]} 30. Ke2 {[%emt 0:01:54]} Qh5+ {[%emt 0:00:18]} 31. f3 {[%emt 0:00:29]} exf3+ {[%emt 0:00:09]} 32. Kd2 {[%emt 0:00:56]} Rfe7 {[%emt 0:00:33]} 0-1

[Event "22nd OIBM 2018"]
[Site "Gmund am Tegernsee"]
[Date "2018.11.02"]
[Round "7"]
[White "Bente, Bjoern"]
[Black "Pasti, Aron"]
[Result "1/2-1/2"]
[ECO "C50"]
[WhiteElo "2228"]
[BlackElo "2085"]
[Annotator "NA"]
[PlyCount "47"]
[EventDate "2018.10.27"]
[EventType "swiss"]
[EventCountry "GER"]
[SourceTitle "playchess.com"]
[Source "ChessBase"]
[SourceQuality "1"]
[TimeControl "40/5400+30:1800+30"]

1. e4 {[%emt 0:00:00]} e5 {[%emt 0:00:00]} 2. Nf3 {[%emt 0:00:00]} Nc6 {[%emt 0:00:00]} 3. Bc4 {[%emt 0:00:00]} Bc5 {[%emt 0:00:00]} 4. O-O {[%emt 0:00:00]} Nf6 {[%emt 0:00:00] LiveBook: 2123 Games} 5. d3 {[%emt 0:00:00]} d6 {[%emt 0:00:28]} 6. a4 {[%emt 0:00:28]} Bg4 {[%emt 0:00:31]} 7. c3 {[%emt 0:00:31]} a5 {[%emt 0:00:56]} 8. Nbd2 {[%emt 0:02:56]} O-O {[%emt 0:02:54]} 9. Re1 {[%emt 0:01:11]} Qd7 {[%emt 0:02:06]} 10. Nf1 {[%emt 0:00:39]} d5 {[%emt 0:03:11]} 11. exd5 {[%emt 0:01:02]} Nxd5 {[%emt 0:00:50]} 12. h3 {[%emt 0:00:17]} Bxf3 13. Qxf3 {[%emt 0:00:53]} Rad8 {[%emt 0:10:10]} 14. Ng3 {[%emt 0:01:31]} Ba7 {[%emt 0:11:50]} 15. Nf5 {[%emt 0:07:31]} Nde7 $18 {[%emt 0:05:47]} (15... f6 $16) 16. Nxe7+ {[%emt 0:06:24]} Qxe7 {[%emt 0:01:42]} 17. b3 {[%emt 0:02:27]} Bc5 {[%emt 0:09:39]} 18. d4 {[%emt 0:02:32]} Bd6 {[%emt 0:00:10]} 19. Bf4 {[%emt 0:02:42]} Qf6 {[%emt 0:01:55]} 20. dxe5 {[%emt 0:01:14]} Nxe5 {[%emt 0:00:46]} 21. Bxe5 {[%emt 0:01:11]} Bxe5 {[%emt 0:00:05]} 22. Qxf6 {[%emt 0:00:12]} Bxf6 {[%emt 0:00:08]} 23. Rac1 {[%emt 0:00:15]} Rfe8 {[%emt 0:00:39]} 24. Rxe8+ 1/2-1/2

[Event "22nd OIBM 2018"]
[Site "Gmund am Tegernsee"]
[Date "2018.11.02"]
[Round "7"]
[White "Stolte, Alexander"]
[Black "Konik, Michael, Dr."]
[Result "1/2-1/2"]
[ECO "A13"]
[WhiteElo "2218"]
[BlackElo "2083"]
[Annotator "NA"]
[PlyCount "31"]
[EventDate "2018.10.27"]
[EventType "swiss"]
[EventCountry "GER"]
[SourceTitle "playchess.com"]
[Source "ChessBase"]
[SourceQuality "1"]
[TimeControl "40/5400+30:1800+30"]

1. Nf3 {[%emt 0:00:00]} d5 {[%emt 0:00:00]} 2. c4 {[%emt 0:01:31]} e6 {[%emt 0:00:18]} 3. g3 {[%emt 0:01:41]} Nf6 {[%emt 0:00:16]} 4. Bg2 {[%emt 0:00:12]} Nbd7 {[%emt 0:03:17]} 5. b3 {[%emt 0:10:12]} Be7 {[%emt 0:00:39]} 6. O-O {[%emt 0:00:04]} O-O {[%emt 0:00:12]} 7. Bb2 {[%emt 0:00:05]} c6 {[%emt 0:02:22]} 8. d3 {[%emt 0:00:22]} b5 {[%emt 0:03:35]} 9. Nbd2 {[%emt 0:03:57]} Qb6 {[%emt 0:07:34]} 10. e4 {[%emt 0:25:49]} Rd8 {[%emt 0:05:21]} 11. e5 {[%emt 0:06:31]} Ne8 {[%emt 0:02:50]} 12. cxd5 {[%emt 0:02:11]} cxd5 {[%emt 0:01:05]} 13. Bd4 {[%emt 0:00:13]} Qa6 {[%emt 0:05:47]} 14. Qe2 {[%emt 0:00:45]} b4 {[%emt 0:01:53]} 15. Rfc1 {[%emt 0:02:00]} Bb7 {[%emt 0:02:13]} 16. Nf1 {[%emt 0:02:56]} 1/2-1/2